Workbook

Sheet Inputs
A1: Finding the Efficient Frontier
A4: Today's date | B4: =TODAY() -> 2026-02-02
A5: Start date | B5: =DATE(YEAR(B4)-5, MONTH(B4)-1,1) -> 2021-01-01
A6: End date | B6: =DATE(YEAR(B4), MONTH(B4)-1, 28) -> 2026-01-28
E11: Risk-free Rate | G11: 0.03
E12: Market Risk Premium (Rm-Rf) | G12: 0.057
B14: Ticker Symbols
B15: 1 | C15: SBUX
B16: 2 | C16: JPM
B17: 3 | C17: KO
B18: 4 | C18: GRMN
B19: 5 | C19: HD
B20: 6 | C20: LUV
B21: 7 | C21: LLY
B22: 8 | C22: XOM
H25: Enter Value for x
A41: Ignore everything below this point on this worksheet
A47: If selected to be restricted, weights for these individual ETFs must be 0.2 or less
A48: Financial (XLF)
A49: Health (XLV)
A50: Energy (IYE)
A51: Technology (VGT)
A52: Utilities (IDU)
A53: China (FXI)
A54: Japan (NKY)
A55: India (INP)
A56: Latin America (EWZ)
A57: Europe (EWG)
A58: Emerging Markets (VWO)
A59: Junk Bonds (HYG)
A60: Domestic Real Estate (VNQ)
A61: Global Real Estate (IFGL)
A62: Precious Metals (IAU)
A63: Natural Resources (VAW)
A64: Agricultural Commodities (RJA)
... 21 more rows

Sheet Returns
B1: PRICES | K1: RETURNS | T1: Rf | U1: =Inputs!$G$11 -> 0.03
A2: Date | B2: =Inputs!C15 -> SBUX | C2: =Inputs!C16 -> JPM | D2: =Inputs!C17 -> KO | E2: =Inputs!C18 -> GRMN | F2: =Inputs!C19 -> HD | G2: =Inputs!C20 -> LUV | H2: =Inputs!C21 -> LLY | I2: =Inputs!C22 -> XOM | J2: ivv | K2: =B2 -> SBUX | L2: =C2 -> JPM | M2: =D2 -> KO | N2: GRMN | O2: HD | P2: LUV | Q2: LLY | R2: XOM | S2: =J2 -> ivv | T2: Rm-Rf | U2: =Inputs!$G$12 -> 0.057
A3: =A71 -> 2021-01-01 | B3: =_xlfn.STOCKHISTORY(B2,$A$71,$A$72,2,0,1) -> 96.81 | C3: =_xlfn.STOCKHISTORY(C2,$A$71,$A$72,2,0,1) -> 128.67 | D3: =_xlfn.STOCKHISTORY(D2,$A$71,$A$72,2,0,1) -> 48.15 | E3: =_xlfn.STOCKHISTORY(E2,$A$71,$A$72,2,0,1) -> 114.86 | F3: =_xlfn.STOCKHISTORY(F2,$A$71,$A$72,2,0,1) -> 270.82 | G3: =_xlfn.STOCKHISTORY(G2,$A$71,$A$72,2,0,1) -> 43.94 | H3: =_xlfn.STOCKHISTORY(H2,$A$71,$A$72,2,0,1) -> 207.97 | I3: =_xlfn.STOCKHISTORY(I2,$A$71,$A$72,2,0,1) -> 44.84 | J3: =_xlfn.STOCKHISTORY(J2,$A$71,$A$72,2,0,1) -> 371.52 | K3: _1 | L3: _2 | M3: _3 | N3: _4 | O3: _5 | P3: _6 | Q3: _7 | R3: _8
A4: =EDATE(A3,1) -> 2021-02-01 | B4: 108.03 | C4: 147.17 | D4: 48.99 | E4: 124.02 | F4: 258.34 | G4: 58.13 | H4: 204.89 | I4: 54.37 | J4: 381.77 | K4: =LN(B4/B3) -> 0.1096586716 | L4: =LN(C4/C3) -> 0.134337394 | M4: =LN(D4/D3) -> 0.01729505741 | N4: =LN(E4/E3) -> 0.07672884749 | O4: =LN(F4/F3) -> -0.04717784675 | P4: =LN(G4/G3) -> 0.2798568148 | Q4: =LN(H4/H3) -> -0.01492058877 | R4: =LN(I4/I3) -> 0.192711933 | S4: =LN(J4/J3) -> 0.02721563452
A5: =EDATE(A4,1) -> 2021-03-01 | B5: 109.27 | C5: 152.23 | D5: 52.71 | E5: 131.85 | F5: 305.25 | G5: 61.06 | H5: 186.82 | I5: 55.83 | J5: 397.82 | K5: =LN(B5/B4) -> 0.01141291725 | L5: 0.0338041539 | M5: 0.07318899522 | N5: 0.06122206988 | O5: 0.1668545662 | P5: 0.04917510559 | Q5: -0.09232766331 | R5: 0.02649882816 | S5: 0.04118130864
A6: 2021-04-01 | B6: 114.49 | C6: 153.81 | D6: 53.98 | E6: 137.24 | F6: 323.67 | G6: 62.78 | H6: 182.77 | I6: 57.24 | J6: 418.88 | K6: 0.04666559935 | L6: 0.01032553939 | M6: 0.02380841672 | N6: 0.04006630519 | O6: 0.05859336524 | P6: 0.02777956411 | Q6: -0.02191705468 | R6: 0.02494159537 | S6: 0.05158484104
A7: 2021-05-01 | B7: 113.88 | C7: 164.24 | D7: 55.29 | E7: 142.24 | F7: 318.91 | G7: 61.46 | H7: 199.74 | I7: 58.37 | J7: 421.65 | K7: -0.005342220526 | L7: 0.06561069825 | M7: 0.02397845276 | N7: 0.03578455378 | O7: -0.01481554691 | P7: -0.02124999471 | Q7: 0.08878798905 | R7: 0.01954910453 | S7: 0.006591103299
A8: 2021-06-01 | B8: 111.81 | C8: 155.54 | D8: 54.11 | E8: 144.64 | F8: 318.89 | G8: 53.09 | H8: 229.52 | I8: 63.08 | J8: 429.92 | K8: -0.01834426025 | L8: -0.05442583944 | M8: -0.0215730487 | N8: 0.01673212488 | O8: -6.271558484e-05 | P8: -0.1463979701 | Q8: 0.1389736509 | R8: 0.07760170288 | S8: 0.01942355885
A9: 2021-07-01 | B9: 121.43 | C9: 151.78 | D9: 57.03 | E9: 157.2 | F9: 328.19 | G9: 50.52 | H9: 243.5 | I9: 57.57 | J9: 440.4 | K9: 0.08253696291 | L9: -0.02447082929 | M9: 0.05255843351 | N9: 0.08327098335 | O9: 0.02874649323 | P9: -0.04961928911 | Q9: 0.05912677085 | R9: -0.09140216341 | S9: 0.02408425998
A10: 2021-08-01 | B10: 117.49 | C10: 159.95 | D10: 56.31 | E10: 174.43 | F10: 326.18 | G10: 49.78 | H10: 258.29 | I10: 54.52 | J10: 453.71 | K10: -0.03298474149 | L10: 0.05242916242 | M10: -0.0127053059 | N10: 0.104004635 | O10: -0.006143332737 | P10: -0.01475600054 | Q10: 0.05896604216 | R10: -0.05443399186 | S10: 0.02977482257
A11: 2021-09-01 | B11: 110.31 | C11: 163.69 | D11: 52.47 | E11: 155.46 | F11: 328.26 | G11: 51.43 | H11: 231.05 | I11: 58.82 | J11: 430.82 | K11: -0.0630586396 | L11: 0.02311312876 | M11: -0.07063056157 | N11: -0.1151350512 | O11: 0.006356601075 | P11: 0.03260836285 | Q11: -0.1114488474 | R11: 0.0759143263 | S11: -0.05176785796
A12: 2021-10-01 | B12: 106.07 | C12: 169.89 | D12: 56.37 | E12: 143.6 | F12: 371.74 | G12: 47.28 | H12: 254.76 | I12: 64.47 | J12: 460.99 | K12: -0.03919533046 | L12: 0.03717677364 | M12: 0.07169552439 | N12: -0.07935680719 | O12: 0.1243887079 | P12: -0.08413428669 | Q12: 0.09768778819 | R12: 0.0917180662 | S12: 0.06768598133
A13: 2021-11-01 | B13: 109.64 | C13: 158.83 | D13: 52.45 | E13: 133.54 | F13: 400.61 | G13: 44.4 | H13: 248.04 | I13: 59.84 | J13: 457.63 | K13: 0.03310301792 | L13: -0.06731672095 | M13: -0.07207676725 | N13: -0.07263059818 | O13: 0.0747937003 | P13: -0.06284790366 | Q13: -0.02673190202 | R13: -0.07452566566 | S13: -0.00731535343
A14: 2021-12-01 | B14: 116.97 | C14: 158.35 | D14: 59.21 | E14: 136.17 | F14: 415.01 | G14: 42.84 | H14: 276.22 | I14: 61.19 | J14: 476.99 | K14: 0.06471522023 | L14: -0.003026674862 | M14: 0.1212301117 | N14: 0.01950304671 | O14: 0.03531423085 | P14: -0.03576722386 | Q14: 0.1076076262 | R14: 0.02230944381 | S14: 0.04143452895
A15: 2022-01-01 | B15: 98.32 | C15: 148.6 | D15: 61.01 | E15: 124.42 | F15: 366.98 | G15: 44.76 | H15: 245.39 | I15: 75.96 | J15: 451.77 | K15: -0.1736900264 | L15: -0.0635496407 | M15: 0.02994733862 | N15: -0.09024116605 | O15: -0.1229952657 | P15: 0.04384263786 | Q15: -0.118348868 | R15: 0.2162231085 | S15: -0.05432232554
A16: 2022-02-01 | B16: 91.79 | C16: 141.8 | D16: 62.24 | E16: 110.44 | F16: 315.83 | G16: 43.8 | H16: 249.95 | I16: 78.42 | J16: 438.72 | K16: -0.06872410603 | L16: -0.04684051819 | M16: 0.01996009471 | N16: -0.119190552 | O16: -0.1501032565 | P16: -0.02168106606 | Q16: 0.01841211621 | R16: 0.03187211092 | S16: -0.02931180439
A17: 2022-03-01 | B17: 90.97 | C17: 136.32 | D17: 62 | E17: 118.61 | F17: 299.33 | G17: 45.8 | H17: 286.37 | I17: 82.59 | J17: 453.69 | K17: -0.008973577397 | L17: -0.03941255102 | M17: -0.003863494825 | N17: 0.07136841298 | O17: -0.05365745043 | P17: 0.04465027374 | Q17: 0.1360237831 | R17: 0.05180961096 | S17: 0.03355274906
A18: 2022-04-01 | B18: 74.64 | C18: 119.36 | D18: 64.61 | E18: 109.74 | F18: 300.4 | G18: 46.72 | H18: 292.13 | I18: 85.25 | J18: 413.56 | K18: -0.1978532253 | L18: -0.1328609266 | M18: 0.04123481252 | N18: -0.07772686841 | O18: 0.003568276175 | P18: 0.0198882474 | Q18: 0.01991422768 | R18: 0.03169950834 | S18: -0.09261153871
A19: 2022-05-01 | B19: 78.5 | C19: 132.23 | D19: 63.38 | E19: 105.62 | F19: 302.75 | G19: 45.86 | H19: 313.44 | I19: 96 | J19: 414.87 | K19: 0.05042206825 | L19: 0.1023986941 | M19: -0.01922084331 | N19: -0.03826618435 | O19: 0.007792462543 | P19: -0.01857906109 | Q19: 0.07040904552 | R19: 0.1187600753 | S19: 0.003162611426
A20: 2022-06-01 | B20: 76.39 | C20: 112.61 | D20: 62.91 | E20: 98.25 | F20: 274.27 | G20: 36.12 | H20: 324.23 | I20: 85.64 | J20: 379.15 | K20: -0.02724682724 | L20: -0.1606123089 | M20: -0.007443220681 | N20: -0.07233249653 | O20: -0.09879435977 | P20: -0.2387465489 | Q20: 0.0338451863 | R20: -0.1141957277 | S20: -0.090033313
A21: 2022-07-01 | B21: 84.78 | C21: 115.36 | D21: 64.17 | E21: 97.62 | F21: 300.94 | G21: 38.12 | H21: 329.69 | I21: 96.93 | J21: 414.28 | K21: 0.1042078684 | L21: 0.02412715183 | M21: 0.01983067818 | N21: -0.00643286029 | O21: 0.09279788667 | P21: 0.05389235024 | Q21: 0.01669967852 | R21: 0.1238366048 | S21: 0.08861016857
A22: 2022-08-01 | B22: 84.07 | C22: 113.73 | D22: 61.71 | E22: 88.49 | F22: 288.42 | G22: 36.7 | H22: 301.23 | I22: 95.59 | J22: 397.18 | K22: -0.008409880777 | L22: -0.01423045534 | M22: -0.03908981943 | N22: -0.09819283918 | O22: -0.0424931582 | P22: -0.03796232373 | Q22: -0.09027872645 | R22: -0.01392085643 | S22: -0.04215249528
A23: 2022-09-01 | B23: 84.26 | C23: 104.5 | D23: 56.02 | E23: 80.31 | F23: 275.94 | G23: 30.84 | H23: 323.35 | I23: 87.31 | J23: 358.65 | K23: 0.002257471404 | L23: -0.08464014679 | M23: -0.0967372225 | N23: -0.09699540508 | O23: -0.04423430035 | P23: -0.1739642064 | Q23: 0.07086123533 | R23: -0.09060320825 | S23: -0.1020425959
A24: 2022-10-01 | B24: 86.59 | C24: 125.88 | D24: 59.85 | E24: 88.04 | F24: 296.13 | G24: 36.35 | H24: 362.09 | I24: 110.81 | J24: 387.79 | K24: 0.02727707891 | L24: 0.1861420008 | M24: 0.06613266217 | N24: 0.09189711046 | O24: 0.07061509632 | P24: 0.1643816553 | Q24: 0.1131574718 | R24: 0.2383520191 | S24: 0.07811697342
A25: 2022-11-01 | B25: 102.2 | C25: 138.18 | D25: 63.61 | E25: 92.99 | F25: 323.99 | G25: 39.91 | H25: 371.08 | I25: 111.34 | J25: 409.32 | K25: 0.1657473423 | L25: 0.09322811086 | M25: 0.06092925869 | N25: 0.05470070383 | O25: 0.08991410402 | P25: 0.09343271508 | Q25: 0.02452487308 | R25: 0.004771559807 | S25: 0.05403329023
A26: 2022-12-01 | B26: 99.2 | C26: 134.1 | D26: 63.61 | E26: 92.29 | F26: 315.86 | G26: 33.67 | H26: 365.84 | I26: 110.3 | J26: 384.21 | K26: -0.02979366348 | L26: -0.02997139277 | M26: 0 | N26: -0.007556167213 | O26: -0.02541357368 | P26: -0.1700196859 | Q26: -0.01422159344 | R26: -0.009384656496 | S26: -0.06330796811
A27: 2023-01-01 | B27: 109.14 | C27: 139.96 | D27: 61.32 | E27: 98.88 | F27: 324.17 | G27: 35.77 | H27: 344.15 | I27: 116.01 | J27: 408.31 | K27: 0.09549344747 | L27: 0.04277087721 | M27: -0.03666463669 | N27: 0.06897120043 | O27: 0.02596899211 | P27: 0.0605023201 | Q27: -0.06111847051 | R27: 0.05047246803 | S27: 0.06083741171
A28: 2023-02-01 | B28: 102.09 | C28: 143.35 | D28: 59.51 | E28: 98.13 | F28: 296.54 | G28: 33.58 | H28: 311.22 | I28: 109.91 | J28: 397.97 | K28: -0.06677668458 | L28: 0.02393252483 | M28: -0.02996168835 | N28: -0.007613863491 | O28: -0.08908595296 | P28: -0.06317890162 | Q28: -0.1005775513 | R28: -0.05401454521 | S28: -0.02565006426
A29: 2023-03-01 | B29: 104.13 | C29: 130.31 | D29: 62.03 | E29: 100.92 | F29: 295.12 | G29: 32.54 | H29: 343.42 | I29: 109.66 | J29: 411.08 | K29: 0.01978534136 | L29: -0.09537296517 | M29: 0.04147377333 | N29: 0.02803499355 | O29: -0.004800063301 | P29: -0.03146054986 | Q29: 0.09845413029 | R29: -0.002277179105 | S29: 0.0324112172
A30: 2023-04-01 | B30: 114.29 | C30: 138.24 | D30: 64.15 | E30: 98.17 | F30: 300.54 | G30: 30.29 | H30: 395.86 | I30: 118.34 | J30: 417.66 | K30: 0.09309895937 | L30: 0.0590750779 | M30: 0.03360595208 | N30: -0.02762745407 | O30: 0.01819880331 | P30: -0.07165247675 | Q30: 0.1421064255 | R30: 0.07617716727 | S30: 0.01587986165
A31: 2023-05-01 | B31: 97.64 | C31: 135.71 | D31: 59.66 | E31: 103.15 | F31: 283.45 | G31: 29.87 | H31: 429.46 | I31: 102.18 | J31: 419.43 | K31: -0.1574518324 | L31: -0.01847104896 | M31: -0.07256231198 | N31: 0.04948356981 | O31: -0.05854511583 | P31: -0.01396299281 | Q31: 0.08146799215 | R31: -0.1468258733 | S31: 0.004228942259
A32: 2023-06-01 | B32: 99.06 | C32: 145.44 | D32: 60.22 | E32: 104.29 | F32: 310.64 | G32: 36.21 | H32: 468.98 | I32: 107.25 | J32: 445.71 | K32: 0.01443848164 | L32: 0.06924337434 | M32: 0.009342743967 | N32: 0.01099124062 | O32: 0.09159894465 | P32: 0.1924806915 | Q32: 0.08803151807 | R32: 0.04842659391 | S32: 0.06077186965
A33: 2023-07-01 | B33: 101.57 | C33: 157.96 | D33: 61.93 | E33: 105.89 | F33: 333.84 | G33: 34.16 | H33: 454.55 | I33: 107.24 | J33: 460.18 | K33: 0.02502248879 | L33: 0.08257820599 | M33: 0.0280001919 | N33: 0.01522533931 | O33: 0.07202715086 | P33: -0.05827995486 | Q33: -0.03125220505 | R33: -9.324444037e-05 | S33: 0.03194920097
A34: 2023-08-01 | B34: 97.44 | C34: 146.33 | D34: 59.83 | E34: 106.02 | F34: 330.3 | G34: 31.6 | H34: 554.2 | I34: 111.19 | J34: 452.69 | K34: -0.04151141199 | L34: -0.07647749131 | M34: -0.03449750755 | N34: 0.001226936117 | O34: -0.01066050389 | P34: -0.07789824833 | Q34: 0.1982177139 | R34: 0.03617113635 | S34: -0.01641015278
A35: 2023-09-01 | B35: 91.27 | C35: 145.02 | D35: 55.98 | E35: 105.2 | F35: 302.16 | G35: 27.07 | H35: 537.13 | I35: 117.58 | J35: 429.43 | K35: -0.06541465743 | L35: -0.008992681161 | M35: -0.06651272331 | N35: -0.007764455256 | O35: -0.08904465399 | P35: -0.154731017 | Q35: -0.03128548156 | R35: 0.05587850326 | S35: -0.05274881658
A36: 2023-10-01 | B36: 92.24 | C36: 139.06 | D36: 56.49 | E36: 102.53 | F36: 284.69 | G36: 22.23 | H36: 553.93 | I36: 105.85 | J36: 419.94 | K36: 0.01057172943 | L36: -0.04196616927 | M36: 0.00906914725 | N36: -0.02570786162 | O36: -0.05955580943 | P36: -0.1969833757 | Q36: 0.0307981741 | R36: -0.1050959554 | S36: -0.022346904
A37: 2023-11-01 | B37: 99.3 | C37: 156.08 | D37: 58.44 | E37: 122.24 | F37: 313.49 | G37: 25.57 | H37: 591.04 | I37: 102.74 | J37: 458.42 | K37: 0.07375169509 | L37: 0.1154632016 | M37: 0.03393695555 | N37: 0.1758308867 | O37: 0.09636659266 | P37: 0.1399770613 | Q37: 0.06484537204 | R37: -0.02982147254 | S37: 0.08767395054
A38: 2023-12-01 | B38: 96.01 | C38: 170.1 | D38: 58.93 | E38: 128.54 | F38: 346.55 | G38: 28.88 | H38: 582.92 | I38: 99.98 | J38: 477.63 | K38: -0.03369321834 | L38: 0.08601780309 | M38: 0.008349711967 | N38: 0.05025381452 | O38: 0.1002596467 | P38: 0.1217295247 | Q38: -0.01383374135 | R38: -0.02723135905 | S38: 0.04105057971
A39: 2024-01-01 | B39: 93.03 | C39: 174.36 | D39: 59.49 | E39: 119.49 | F39: 352.96 | G39: 29.89 | H39: 645.61 | I39: 102.81 | J39: 485.2 | K39: -0.03153033093 | L39: 0.02473562797 | M39: 0.00945793235 | N39: -0.07300745408 | O39: 0.0183276277 | P39: 0.03437466227 | Q39: 0.1021456506 | R39: 0.02791245857 | S39: 0.01572480289
A40: 2024-02-01 | B40: 94.9 | C40: 186.06 | D40: 60.02 | E40: 137.35 | F40: 380.61 | G40: 34.27 | H40: 753.68 | I40: 104.52 | J40: 510.45 | K40: 0.01990168384 | L40: 0.06494707497 | M40: 0.008869608812 | N40: 0.1392997267 | O40: 0.07542049276 | P40: 0.1367463596 | Q40: 0.1547722684 | R40: 0.0164958161 | S40: 0.05073151255
A41: 2024-03-01 | B41: 91.39 | C41: 200.3 | D41: 61.18 | E41: 148.87 | F41: 383.6 | G41: 29.19 | H41: 777.96 | I41: 116.24 | J41: 525.73 | K41: -0.03768764233 | L41: 0.07374704033 | M41: 0.01914249871 | N41: 0.08054102935 | O41: 0.007825114189 | P41: -0.160444151 | Q41: 0.03170723423 | R41: 0.1062785786 | S41: 0.02949508335
A42: 2024-04-01 | B42: 88.49 | C42: 191.74 | D42: 61.77 | E42: 144.47 | F42: 334.22 | G42: 25.94 | H42: 781.1 | I42: 118.27 | J42: 504.44 | K42: -0.032246512 | L42: -0.04367595502 | M42: 0.009597470985 | N42: -0.03000156835 | O42: -0.1378008842 | P42: -0.118040006 | Q42: 0.004028073641 | R42: 0.017313127 | S42: -0.04133886988
A43: 2024-05-01 | B43: 80.22 | C43: 202.63 | D43: 62.93 | E43: 163.85 | F43: 334.87 | G43: 26.84 | H43: 820.34 | I43: 117.26 | J43: 529.96 | K43: -0.09811669094 | L43: 0.05524136823 | M43: 0.01860518783 | N43: 0.1258795016 | O43: 0.001942938034 | P43: 0.03410713322 | Q43: 0.04901570585 | R43: -0.008576454727 | S43: 0.04935262891
A44: 2024-06-01 | B44: 77.85 | C44: 202.26 | D44: 63.65 | E44: 162.92 | F44: 344.24 | G44: 28.61 | H44: 905.38 | I44: 115.12 | J44: 547.23 | K44: -0.02998896206 | L44: -0.001827657403 | M44: 0.01137632746 | N44: -0.005692092365 | O44: 0.02759669172 | P44: 0.06386299496 | Q44: 0.09863585661 | R44: -0.01841862896 | S44: 0.03206765737
A45: 2024-07-01 | B45: 77.95 | C45: 212.8 | D45: 66.74 | E45: 171.25 | F45: 368.16 | G45: 26.94 | H45: 804.27 | I45: 118.59 | J45: 553.32 | K45: 0.001283697224 | L45: 0.05079875899 | M45: 0.04740514832 | N45: 0.04986519436 | O45: 0.06717853776 | P45: -0.06014413608 | Q45: -0.1184197114 | R45: 0.0296971034 | S45: 0.01106730664
A46: 2024-08-01 | B46: 94.57 | C46: 224.8 | D46: 72.47 | E46: 183.29 | F46: 368.5 | G46: 28.92 | H46: 960.02 | I46: 117.94 | J46: 566.75 | K46: 0.1932727055 | L46: 0.05485836055 | M46: 0.0823682098 | N46: 0.06794512084 | O46: 0.0009230853423 | P46: 0.07092122631 | Q46: 0.1770190839 | R46: -0.005496145404 | S46: 0.02398179338
A47: 2024-09-01 | B47: 97.49 | C47: 210.86 | D47: 71.86 | E47: 176.03 | F47: 405.2 | G47: 29.63 | H47: 885.94 | I47: 117.22 | J47: 576.82 | K47: 0.03040950761 | L47: -0.06401671187 | M47: -0.008452901436 | N47: -0.04041516293 | O47: 0.09494006075 | P47: 0.02425396429 | Q47: -0.08030488936 | R47: -0.006123509524 | S47: 0.01761197005
A48: 2024-10-01 | B48: 97.7 | C48: 221.92 | D48: 65.31 | E48: 198.35 | F48: 393.75 | G48: 30.58 | H48: 829.74 | I48: 116.78 | J48: 571.24 | K48: 0.002151750408 | L48: 0.05112255042 | M48: -0.09557461777 | N48: 0.1193787119 | O48: -0.02866458223 | P48: 0.03155883892 | Q48: -0.06553682952 | R48: -0.003760688193 | S48: -0.009720822849
A49: 2024-11-01 | B49: 102.46 | C49: 249.72 | D49: 64.08 | E49: 212.6 | F49: 429.13 | G49: 32.36 | H49: 795.35 | I49: 117.96 | J49: 605.07 | K49: 0.04757091946 | L49: 0.1180233336 | M49: -0.01901286115 | N49: 0.06937931895 | O49: 0.08604371319 | P49: 0.05657689169 | Q49: -0.04233012936 | R49: 0.01005376109 | S49: 0.05753471723
A50: 2024-12-01 | B50: 91.25 | C50: 239.71 | D50: 62.26 | E50: 206.26 | F50: 388.99 | G50: 33.62 | H50: 772 | I50: 107.57 | J50: 588.68 | K50: -0.115869486 | L50: -0.04091043081 | M50: -0.02881313775 | N50: -0.03027495702 | O50: -0.09820626698 | P50: 0.03819803579 | Q50: -0.02979771932 | R50: -0.0922037855 | S50: -0.02746141152
A51: 2025-01-01 | B51: 107.68 | C51: 267.3 | D51: 63.48 | E51: 215.85 | F51: 411.98 | G51: 30.71 | H51: 811.08 | I51: 106.83 | J51: 604.66 | K51: 0.1655608734 | L51: 0.1089417638 | M51: 0.01940573064 | N51: 0.04544621311 | O51: 0.05742116813 | P51: -0.09053279353 | Q51: 0.04938214288 | R51: -0.006903012486 | S51: 0.02678357429
A52: 2025-02-01 | B52: 115.81 | C52: 264.65 | D52: 71.21 | E52: 228.93 | F52: 396.6 | G52: 31.06 | H52: 920.63 | I52: 111.33 | J52: 597.04 | K52: 0.0727870513 | L52: -0.009963424841 | M52: 0.1149083623 | N52: 0.05883255797 | O52: -0.0380465884 | P52: 0.01133248327 | Q52: 0.1266915254 | R52: 0.04125997778 | S52: -0.01268220376
A53: 2025-03-01 | B53: 98.09 | C53: 245.3 | D53: 71.62 | E53: 217.13 | F53: 366.49 | G53: 33.58 | H53: 825.91 | I53: 118.93 | J53: 561.9 | K53: -0.1660654926 | L53: -0.07592624704 | M53: 0.005741106576 | N53: -0.05292002746 | O53: -0.07895698026 | P53: 0.07800983393 | Q53: -0.1085724095 | R53: 0.066036321 | S53: -0.0606602147
A54: 2025-04-01 | B54: 80.05 | C54: 244.62 | D54: 72.55 | E54: 186.87 | F54: 360.49 | G54: 27.96 | H54: 898.95 | I54: 105.63 | J54: 557.96 | K54: -0.2032339851 | L54: -0.002775965205 | M54: 0.01290161476 | N54: -0.1500830646 | O54: -0.01650701874 | P54: -0.1831557343 | Q54: 0.08474160683 | R54: -0.1185926629 | S54: -0.007036622894
A55: 2025-05-01 | B55: 83.95 | C55: 264 | D55: 72.1 | E55: 202.97 | F55: 368.29 | G55: 33.38 | H55: 737.67 | I55: 102.3 | J55: 592.15 | K55: 0.04756994408 | L55: 0.07624311709 | M55: -0.006221935039 | N55: 0.08264499694 | O55: 0.02140645421 | P55: 0.1771820009 | Q55: -0.1977308454 | R55: -0.03203274888 | S55: 0.05947270594
A56: 2025-06-01 | B56: 91.63 | C56: 289.91 | D56: 70.75 | E56: 208.72 | F56: 366.64 | G56: 32.44 | H56: 779.53 | I56: 107.8 | J56: 620.9 | K56: 0.08753734545 | L56: 0.09362142684 | M56: -0.01890150777 | N56: 0.02793545596 | O56: -0.004490231103 | P56: -0.02856468899 | Q56: 0.05519460384 | R56: 0.05236798552 | S56: 0.0474100572
A57: 2025-07-01 | B57: 89.16 | C57: 296.24 | D57: 67.89 | E57: 218.76 | F57: 367.51 | G57: 30.93 | H57: 740.07 | I57: 111.64 | J57: 634.9 | K57: -0.02732622046 | L57: 0.02159940662 | M57: -0.04126378821 | N57: 0.04698159765 | O57: 0.002370088966 | P57: -0.04766564255 | Q57: -0.05194639765 | R57: 0.03500175019 | S57: 0.02229746781
A58: 2025-08-01 | B58: 88.19 | C58: 301.42 | D58: 68.99 | E58: 241.82 | F58: 406.77 | G58: 32.9 | H58: 732.58 | I58: 114.29 | J58: 648.32 | K58: -0.01093893062 | L58: 0.01733470439 | M58: 0.01607281824 | N58: 0.1002184093 | O58: 0.101497386 | P58: 0.06174607107 | Q58: -0.01017222637 | R58: 0.02345966924 | S58: 0.02091689544
A59: 2025-09-01 | B59: 84.6 | C59: 315.43 | D59: 66.32 | E59: 246.22 | F59: 405.19 | G59: 31.91 | H59: 763 | I59: 112.75 | J59: 669.3 | K59: -0.04155931129 | L59: 0.04543214633 | M59: -0.03947005573 | N59: 0.01803179747 | O59: -0.003891822243 | P59: -0.03055321748 | Q59: 0.04068548134 | R59: -0.01356609953 | S59: 0.03184798849
A60: 2025-10-01 | B60: 80.87 | C60: 311.12 | D60: 68.9 | E60: 213.94 | F60: 379.59 | G60: 30.3 | H60: 862.86 | I60: 114.36 | J60: 685.23 | K60: -0.0450913395 | L60: -0.01375809747 | M60: 0.03816466719 | N60: -0.1405298433 | O60: -0.06526437003 | P60: -0.05177172777 | Q60: 0.1229944218 | R60: 0.01417838907 | S60: 0.02352215822
A61: 2025-11-01 | B61: 87.11 | C61: 313.08 | D61: 73.12 | E61: 195.32 | F61: 356.92 | G61: 34.81 | H61: 1075.47 | I61: 115.92 | J61: 686.88 | K61: 0.07432876072 | L61: 0.006280059089 | M61: 0.05944574913 | N61: -0.09105636268 | O61: -0.06158005584 | P61: 0.1387569893 | Q61: 0.2202606012 | R61: 0.01354893056 | S61: 0.002405056148
A62: 2025-12-01 | B62: 84.21 | C62: 322.22 | D62: 69.91 | E62: 202.85 | F62: 344.1 | G62: 41.33 | H62: 1074.68 | I62: 120.34 | J62: 684.94 | K62: -0.03385800879 | L62: 0.02877579313 | M62: -0.04489322662 | N62: 0.03782755046 | O62: -0.03657935423 | P62: 0.1716839267 | Q62: -0.0007348324866 | R62: 0.03742077178 | S62: -0.002828361291
A63: 2026-01-01 | B63: 91.95 | C63: 305.89 | D63: 74.81 | E63: 201.64 | F63: 374.59 | G63: 47.52 | H63: 1037.15 | I63: 141.4 | J63: 695.03 | K63: =LN(B63/B62) -> 0.08793127201 | L63: =LN(C63/C62) -> -0.05200898186 | M63: 0.06774286536 | N63: -0.005982860438 | O63: 0.08489978171 | P63: 0.1395620465 | Q63: -0.03554637604 | R63: 0.1612716837 | S63: 0.01462376692
A65: Monthly Standard Deviation | K65: =_xlfn.STDEV.S(K4:K63) -> 0.0834265895 | L65: =_xlfn.STDEV.S(L4:L63) -> 0.06829488795 | M65: 0.04653032646 | N65: 0.07385768669 | O65: 0.06943248905 | P65: 0.1070510965 | Q65: 0.08839770601 | R65: 0.07616822989 | S65: 0.04408136847
A66: Annualized Standard Deviation | K66: =K65*SQRT(12) -> 0.2889981834 | L66: =L65*SQRT(12) -> 0.2365804316 | M66: 0.1611857791 | N66: 0.2558505317 | O66: 0.2405211975 | P66: 0.3708358763 | Q66: 0.3062186361 | R66: 0.2638544882 | S66: 0.1527023397
A67: Correlation with S&P | K67: =CORREL(K4:K63,$S$4:$S$63) -> 0.5090780284 | L67: =CORREL(L4:L63,$S$4:$S$63) -> 0.6824843255 | M67: 0.3507453539 | N67: 0.5892717722 | O67: 0.6672607305 | P67: 0.4712657689 | Q67: 0.1907934318 | R67: 0.2186303058 | S67: 1
A68: Beta | K68: =K67*(K66/$S$66) -> 0.9634601912 | L68: =L67*(L66/$S$66) -> 1.057367141 | M68: 0.3702311518 | N68: 0.9873162163 | O68: 1.05100125 | P68: 1.144463501 | Q68: 0.3826038591 | R68: 0.3777714706 | S68: 1
A69: Expected Return from CAPM | K69: =$U$1+K68*$U$2 -> 0.0849172309 | L69: =$U$1+L68*$U$2 -> 0.09026992702 | M69: 0.05110317565 | N69: 0.08627702433 | O69: 0.08990707125 | P69: 0.09523441957 | Q69: 0.05180841997 | R69: 0.05153297383 | S69: =$U$1+S68*$U$2 -> 0.087
A71: =startDate -> 2021-01-01
A72: =endDate -> 2026-01-28

Sheet Correlation Matrix
C1: Correlation Matrix
C2: =Returns!K3 -> _1 | D2: =Returns!L3 -> _2 | E2: =Returns!M3 -> _3 | F2: =Returns!N3 -> _4 | G2: =Returns!O3 -> _5 | H2: =Returns!P3 -> _6 | I2: =Returns!Q3 -> _7 | J2: =Returns!R3 -> _8
C3: =Returns!B2 -> SBUX | D3: =Returns!C2 -> JPM | E3: =Returns!D2 -> KO | F3: =Returns!E2 -> GRMN | G3: =Returns!F2 -> HD | H3: =Returns!G2 -> LUV | I3: =Returns!H2 -> LLY | J3: =Returns!I2 -> XOM | M3: Stand Dev | N3: Expect Ret
A4: =C2 -> _1 | B4: =C3 -> SBUX | C4: =CORREL(_1,_1) -> 1 | D4: =TRANSPOSE(C5:C11) -> 0.4502487065 | E4: 0.3109840584 | F4: 0.3995907035 | G4: 0.4335714854 | H4: 0.2543449442 | I4: 0.1880915067 | J4: 0.1561916746 | L4: =B4 -> SBUX | M4: =Returns!K66 -> 0.2889981834 | N4: =Returns!K69 -> 0.0849172309
A5: =D2 -> _2 | B5: =D3 -> JPM | C5: =CORREL(_2,_1) -> 0.4502487065 | D5: =CORREL(_2,_2) -> 1 | E5: =TRANSPOSE(D6:D11) -> 0.1387609364 | F5: 0.5452971721 | G5: 0.4478723849 | H5: 0.4490388451 | I5: 0.008896793964 | J5: 0.3046082306 | L5: =B5 -> JPM | M5: =Returns!L66 -> 0.2365804316 | N5: =Returns!L69 -> 0.09026992702
A6: =E2 -> _3 | B6: =E3 -> KO | C6: =CORREL(_3,_1) -> 0.3109840584 | D6: =CORREL(_3,_2) -> 0.1387609364 | E6: =CORREL(_3,_3) -> 1 | F6: =TRANSPOSE(E7:E11) -> 0.1178766444 | G6: 0.2920520957 | H6: 0.203686348 | I6: 0.3041225512 | J6: 0.291661522 | L6: KO | M6: =Returns!M66 -> 0.1611857791 | N6: =Returns!M69 -> 0.05110317565
A7: =F2 -> _4 | B7: =F3 -> GRMN | C7: =CORREL(_4,_1) -> 0.3995907035 | D7: =CORREL(_4,_2) -> 0.5452971721 | E7: =CORREL(_4,_3) -> 0.1178766444 | F7: =CORREL(_4,_4) -> 1 | G7: =TRANSPOSE(F8:F11) -> 0.3936166708 | H7: 0.3899104827 | I7: 0.02121566967 | J7: 0.05134456425 | L7: GRMN | M7: =Returns!N66 -> 0.2558505317 | N7: =Returns!N69 -> 0.08627702433
A8: =G2 -> _5 | B8: =G3 -> HD | C8: =CORREL(_5,_1) -> 0.4335714854 | D8: =CORREL(_5,_2) -> 0.4478723849 | E8: =CORREL(_5,_3) -> 0.2920520957 | F8: =CORREL(_5,_4) -> 0.3936166708 | G8: =CORREL(_5,_5) -> 1 | H8: =TRANSPOSE(G9:G11) -> 0.3125751725 | I8: -0.01654806961 | J8: 0.1305664022 | L8: HD | M8: =Returns!O66 -> 0.2405211975 | N8: =Returns!O69 -> 0.08990707125
A9: =H2 -> _6 | B9: =H3 -> LUV | C9: =CORREL(_6,_1) -> 0.2543449442 | D9: =CORREL(_6,_2) -> 0.4490388451 | E9: =CORREL(_6,_3) -> 0.203686348 | F9: =CORREL(_6,_4) -> 0.3899104827 | G9: =CORREL(_6,_5) -> 0.3125751725 | H9: =CORREL(_6,_6) -> 1 | I9: =TRANSPOSE(H10:H11) -> -0.09252344839 | J9: 0.3952313823 | L9: LUV | M9: =Returns!P66 -> 0.3708358763 | N9: =Returns!P69 -> 0.09523441957
A10: =I2 -> _7 | B10: =I3 -> LLY | C10: =CORREL(_7,_1) -> 0.1880915067 | D10: =CORREL(_7,_2) -> 0.008896793964 | E10: =CORREL(_7,_3) -> 0.3041225512 | F10: =CORREL(_7,_4) -> 0.02121566967 | G10: =CORREL(_7,_5) -> -0.01654806961 | H10: =CORREL(_7,_6) -> -0.09252344839 | I10: =CORREL(_7,_7) -> 1 | J10: =TRANSPOSE(I11) -> -0.0307618098 | L10: LLY | M10: =Returns!Q66 -> 0.3062186361 | N10: =Returns!Q69 -> 0.05180841997
A11: =J2 -> _8 | B11: =J3 -> XOM | C11: =CORREL(_8,_1) -> 0.1561916746 | D11: =CORREL(_8,_2) -> 0.3046082306 | E11: =CORREL(_8,_3) -> 0.291661522 | F11: =CORREL(_8,_4) -> 0.05134456425 | G11: =CORREL(_8,_5) -> 0.1305664022 | H11: =CORREL(_8,_6) -> 0.3952313823 | I11: =CORREL(_8,_7) -> -0.0307618098 | J11: =CORREL(_8,_8) -> 1 | L11: XOM | M11: =Returns!R66 -> 0.2638544882 | N11: =Returns!R69 -> 0.05153297383

Sheet Covar Matrix
D1: Var/Cov Matrix
C2: ='Correlation Matrix'!C3 -> SBUX | D2: ='Correlation Matrix'!D3 -> JPM | E2: ='Correlation Matrix'!E3 -> KO | F2: ='Correlation Matrix'!F3 -> GRMN | G2: ='Correlation Matrix'!G3 -> HD | H2: ='Correlation Matrix'!H3 -> LUV | I2: ='Correlation Matrix'!I3 -> LLY | J2: ='Correlation Matrix'!J3 -> XOM
B3: =C2 -> SBUX | C3: ='Correlation Matrix'!C4*'Correlation Matrix'!$M$4*'Correlation Matrix'!M4 -> 0.08351995002 | D3: ='Correlation Matrix'!D4*'Correlation Matrix'!$M$5*'Correlation Matrix'!M4 -> 0.03078409613 | E3: ='Correlation Matrix'!E4*'Correlation Matrix'!$M$6*'Correlation Matrix'!M4 -> 0.01448638298 | F3: ='Correlation Matrix'!F4*'Correlation Matrix'!$M$7*'Correlation Matrix'!M4 -> 0.02954587204 | G3: ='Correlation Matrix'!G4*'Correlation Matrix'!$M$8*'Correlation Matrix'!M4 -> 0.03013763596 | H3: ='Correlation Matrix'!H4*'Correlation Matrix'!$M$9*'Correlation Matrix'!M4 -> 0.0272583752 | I3: ='Correlation Matrix'!I4*'Correlation Matrix'!$M$10*'Correlation Matrix'!M4 -> 0.01664546439 | J3: ='Correlation Matrix'!J4*'Correlation Matrix'!$M$11*'Correlation Matrix'!M4 -> 0.01191015682
B4: =D2 -> JPM | C4: ='Correlation Matrix'!C5*'Correlation Matrix'!$M$4*'Correlation Matrix'!M5 -> 0.03078409613 | D4: ='Correlation Matrix'!D5*'Correlation Matrix'!$M$5*'Correlation Matrix'!M5 -> 0.05597030064 | E4: ='Correlation Matrix'!E5*'Correlation Matrix'!$M$6*'Correlation Matrix'!M5 -> 0.005291426456 | F4: ='Correlation Matrix'!F5*'Correlation Matrix'!$M$7*'Correlation Matrix'!M5 -> 0.03300641753 | G4: ='Correlation Matrix'!G5*'Correlation Matrix'!$M$8*'Correlation Matrix'!M5 -> 0.02548510707 | H4: ='Correlation Matrix'!H5*'Correlation Matrix'!$M$9*'Correlation Matrix'!M5 -> 0.03939530572 | I4: ='Correlation Matrix'!I5*'Correlation Matrix'!$M$10*'Correlation Matrix'!M5 -> 0.000644531238 | J4: ='Correlation Matrix'!J5*'Correlation Matrix'!$M$11*'Correlation Matrix'!M5 -> 0.01901450131
B5: =E2 -> KO | C5: ='Correlation Matrix'!C6*'Correlation Matrix'!$M$4*'Correlation Matrix'!M6 -> 0.01448638298 | D5: ='Correlation Matrix'!D6*'Correlation Matrix'!$M$5*'Correlation Matrix'!M6 -> 0.005291426456 | E5: ='Correlation Matrix'!E6*'Correlation Matrix'!$M$6*'Correlation Matrix'!M6 -> 0.02598085537 | F5: ='Correlation Matrix'!F6*'Correlation Matrix'!$M$7*'Correlation Matrix'!M6 -> 0.004861170019 | G5: ='Correlation Matrix'!G6*'Correlation Matrix'!$M$8*'Correlation Matrix'!M6 -> 0.01132244988 | H5: ='Correlation Matrix'!H6*'Correlation Matrix'!$M$9*'Correlation Matrix'!M6 -> 0.01217503973 | I5: ='Correlation Matrix'!I6*'Correlation Matrix'!$M$10*'Correlation Matrix'!M6 -> 0.01501090808 | J5: ='Correlation Matrix'!J6*'Correlation Matrix'!$M$11*'Correlation Matrix'!M6 -> 0.01240424531
B6: =F2 -> GRMN | C6: ='Correlation Matrix'!C7*'Correlation Matrix'!$M$4*'Correlation Matrix'!M7 -> 0.02954587204 | D6: ='Correlation Matrix'!D7*'Correlation Matrix'!$M$5*'Correlation Matrix'!M7 -> 0.03300641753 | E6: ='Correlation Matrix'!E7*'Correlation Matrix'!$M$6*'Correlation Matrix'!M7 -> 0.004861170019 | F6: ='Correlation Matrix'!F7*'Correlation Matrix'!$M$7*'Correlation Matrix'!M7 -> 0.06545949459 | G6: ='Correlation Matrix'!G7*'Correlation Matrix'!$M$8*'Correlation Matrix'!M7 -> 0.02422217654 | H6: ='Correlation Matrix'!H7*'Correlation Matrix'!$M$9*'Correlation Matrix'!M7 -> 0.03699414362 | I6: ='Correlation Matrix'!I7*'Correlation Matrix'!$M$10*'Correlation Matrix'!M7 -> 0.001662167118 | J6: ='Correlation Matrix'!J7*'Correlation Matrix'!$M$11*'Correlation Matrix'!M7 -> 0.003466133472
B7: =G2 -> HD | C7: ='Correlation Matrix'!C8*'Correlation Matrix'!$M$4*'Correlation Matrix'!M8 -> 0.03013763596 | D7: ='Correlation Matrix'!D8*'Correlation Matrix'!$M$5*'Correlation Matrix'!M8 -> 0.02548510707 | E7: ='Correlation Matrix'!E8*'Correlation Matrix'!$M$6*'Correlation Matrix'!M8 -> 0.01132244988 | F7: ='Correlation Matrix'!F8*'Correlation Matrix'!$M$7*'Correlation Matrix'!M8 -> 0.02422217654 | G7: ='Correlation Matrix'!G8*'Correlation Matrix'!$M$8*'Correlation Matrix'!M8 -> 0.05785044643 | H7: ='Correlation Matrix'!H8*'Correlation Matrix'!$M$9*'Correlation Matrix'!M8 -> 0.02787979525 | I7: ='Correlation Matrix'!I8*'Correlation Matrix'!$M$10*'Correlation Matrix'!M8 -> -0.001218799632 | J7: ='Correlation Matrix'!J8*'Correlation Matrix'!$M$11*'Correlation Matrix'!M8 -> 0.008286083022
B8: =H2 -> LUV | C8: ='Correlation Matrix'!C9*'Correlation Matrix'!$M$4*'Correlation Matrix'!M9 -> 0.0272583752 | D8: ='Correlation Matrix'!D9*'Correlation Matrix'!$M$5*'Correlation Matrix'!M9 -> 0.03939530572 | E8: ='Correlation Matrix'!E9*'Correlation Matrix'!$M$6*'Correlation Matrix'!M9 -> 0.01217503973 | F8: ='Correlation Matrix'!F9*'Correlation Matrix'!$M$7*'Correlation Matrix'!M9 -> 0.03699414362 | G8: ='Correlation Matrix'!G9*'Correlation Matrix'!$M$8*'Correlation Matrix'!M9 -> 0.02787979525 | H8: ='Correlation Matrix'!H9*'Correlation Matrix'!$M$9*'Correlation Matrix'!M9 -> 0.1375192471 | I8: ='Correlation Matrix'!I9*'Correlation Matrix'!$M$10*'Correlation Matrix'!M9 -> -0.01050667193 | J8: ='Correlation Matrix'!J9*'Correlation Matrix'!$M$11*'Correlation Matrix'!M9 -> 0.03867209058
B9: =I2 -> LLY | C9: ='Correlation Matrix'!C10*'Correlation Matrix'!$M$4*'Correlation Matrix'!M10 -> 0.01664546439 | D9: ='Correlation Matrix'!D10*'Correlation Matrix'!$M$5*'Correlation Matrix'!M10 -> 0.000644531238 | E9: ='Correlation Matrix'!E10*'Correlation Matrix'!$M$6*'Correlation Matrix'!M10 -> 0.01501090808 | F9: ='Correlation Matrix'!F10*'Correlation Matrix'!$M$7*'Correlation Matrix'!M10 -> 0.001662167118 | G9: ='Correlation Matrix'!G10*'Correlation Matrix'!$M$8*'Correlation Matrix'!M10 -> -0.001218799632 | H9: ='Correlation Matrix'!H10*'Correlation Matrix'!$M$9*'Correlation Matrix'!M10 -> -0.01050667193 | I9: ='Correlation Matrix'!I10*'Correlation Matrix'!$M$10*'Correlation Matrix'!M10 -> 0.09376985312 | J9: ='Correlation Matrix'!J10*'Correlation Matrix'!$M$11*'Correlation Matrix'!M10 -> -0.002485466915
B10: =J2 -> XOM | C10: ='Correlation Matrix'!C11*'Correlation Matrix'!$M$4*'Correlation Matrix'!M11 -> 0.01191015682 | D10: ='Correlation Matrix'!D11*'Correlation Matrix'!$M$5*'Correlation Matrix'!M11 -> 0.01901450131 | E10: ='Correlation Matrix'!E11*'Correlation Matrix'!$M$6*'Correlation Matrix'!M11 -> 0.01240424531 | F10: ='Correlation Matrix'!F11*'Correlation Matrix'!$M$7*'Correlation Matrix'!M11 -> 0.003466133472 | G10: ='Correlation Matrix'!G11*'Correlation Matrix'!$M$8*'Correlation Matrix'!M11 -> 0.008286083022 | H10: ='Correlation Matrix'!H11*'Correlation Matrix'!$M$9*'Correlation Matrix'!M11 -> 0.03867209058 | I10: ='Correlation Matrix'!I11*'Correlation Matrix'!$M$10*'Correlation Matrix'!M11 -> -0.002485466915 | J10: ='Correlation Matrix'!J11*'Correlation Matrix'!$M$11*'Correlation Matrix'!M11 -> 0.06961919094
D12: Weighted Var/Cov Matrix
C13: =C2 -> SBUX | D13: =D2 -> JPM | E13: KO | F13: GRMN | G13: HD | H13: LUV | I13: LLY | J13: XOM
B14: Weights | C14: =B15 -> -0.04535523573 | D14: =B16 -> 0.1193089612 | E14: =B17 -> 0.4557242248 | F14: =B18 -> 0.1527327206 | G14: =B19 -> 0.1067723979 | H14: =B20 -> -0.03735119989 | I14: =B21 -> 0.1102762931 | J14: =B22 -> 0.1378918197
A15: =B3 -> SBUX | B15: -0.04535523573 | C15: =C3*$B$15*C14 -> 0.0001718086727 | D15: =D3*B15*$D$14 -> -0.0001665815503 | E15: =E3*B15*$E$14 -> -0.000299425998 | F15: =F3*B15*$F$14 -> -0.0002046710082 | G15: =G3*B15*$G$14 -> -0.0001459471461 | H15: =H3*B15*$H$14 -> 4.617766317e-05 | I15: =I3*B15*$I$14 -> -8.32540757e-05 | J15: =J3*B15*$J$14 -> -7.448750222e-05
A16: =B4 -> JPM | B16: 0.1193089612 | C16: =C4*B16*$C$14 -> -0.0001665815503 | D16: 0.0007967164214 | E16: 0.0002877053539 | F16: 0.0006014555565 | G16: 0.0003246523292 | H16: -0.0001755585954 | I16: 8.480065255e-06 | J16: 0.0003128214373
A17: KO | B17: 0.4557242248 | C17: =C5*B17*$C$14 -> -0.000299425998 | D17: 0.0002877053539 | E17: 0.005395822751 | F17: 0.0003383568813 | G17: 0.0005509364647 | H17: -0.0002072416589 | I17: 0.0007543818645 | J17: 0.0007794907467
A18: GRMN | B18: 0.1527327206 | C18: -0.0002046710082 | D18: 0.0006014555565 | E18: 0.0003383568813 | F18: 0.001526992216 | G18: 0.000395006506 | H18: -0.0002110423547 | I18: 2.799554543e-05 | J18: 7.299882554e-05
A19: HD | B19: 0.1067723979 | C19: -0.0001459471461 | D19: 0.0003246523292 | E19: 0.0005509364647 | F19: 0.000395006506 | G19: 0.0006595150445 | H19: -0.0001111867751 | I19: -1.435071268e-05 | J19: 0.0001219963337
A20: LUV | B20: -0.03735119989 | C20: 4.617766317e-05 | D20: -0.0001755585954 | E20: -0.0002072416589 | F20: -0.0002110423547 | G20: -0.0001111867751 | H20: 0.0001918547702 | I20: 4.327647595e-05 | J20: -0.0001991776991
A21: LLY | B21: 0.1102762931 | C21: -8.32540757e-05 | D21: 8.480065255e-06 | E21: 0.0007543818645 | F21: 2.799554543e-05 | G21: -1.435071268e-05 | H21: 4.327647595e-05 | I21: 0.001140322132 | J21: -3.779450383e-05
A22: XOM | B22: 0.1378918197 | C22: -7.448750222e-05 | D22: 0.0003128214373 | E22: 0.0007794907467 | F22: 7.299882554e-05 | G22: 0.0001219963337 | H22: -0.0001991776991 | I22: -3.779450383e-05 | J22: 0.001323750014
A23: Sum | B23: =SUM(B15:B22) -> 0.9999999816
A25: Port. Var | B25: =SUM(C15:J22) -> 0.01667680696
A26: Port. S.D. | B26: =SQRT(B25) -> 0.1291387121
A27: Port. E(R.) | B27: =SUMPRODUCT('Correlation Matrix'!N4:N11,B15:B22) -> 0.06224653973
A29: Sharpe | B29: =(B27-Returns!U1)/'Covar Matrix'!B26 -> 0.2497046719
... 20 more rows

Sheet Efficient Frontier
D1: Efficient Frontier
A2: Expect. Ret. | B2: Stand. Dev. | C2: ='Covar Matrix'!C13 -> SBUX | D2: ='Covar Matrix'!D13 -> JPM | E2: ='Covar Matrix'!E13 -> KO | F2: ='Covar Matrix'!F13 -> GRMN | G2: ='Covar Matrix'!G13 -> HD | H2: ='Covar Matrix'!H13 -> LUV | I2: ='Covar Matrix'!I13 -> LLY | J2: ='Covar Matrix'!J13 -> XOM
A3: 0.01999999466 | B3: 0.2519338017 | C3: -0.1931120343 | D3: -0.2113001089 | E3: 1.192966048 | F3: 0.1828170583 | G3: -0.2954481433 | H3: -0.2616851507 | I3: 0.1218018095 | J3: 0.4639605209
A4: 0.02999999447 | B4: 0.2096181028 | C4: -0.1581372571 | D4: -0.1330430594 | E4: 1.018456747 | F4: 0.1756958222 | G4: -0.2002400752 | H4: -0.2085839839 | I4: 0.1190736961 | J4: 0.3867781098
A5: 0.03999999794 | B5: 0.1721990989 | C5: -0.1231623017 | D5: -0.05478588629 | E5: 0.8439476047 | F5: 0.1685747858 | G5: -0.1050323055 | H5: -0.155482872 | I5: 0.1163452957 | J5: 0.3095956793
A6: 0.04999999728 | B6: 0.1435583266 | C6: -0.0881876335 | D6: 0.02347138524 | E6: 0.6694380988 | F6: 0.1614536615 | G6: -0.009824459719 | H6: -0.1023817261 | I6: 0.1136173504 | J6: 0.2324133233
A7: 0.05999999914 | B7: 0.1296500373 | C7: -0.05321281019 | D7: 0.1017284799 | E7: 0.494928895 | F7: 0.1543325493 | G7: 0.08538346877 | H7: -0.04928056193 | I7: 0.1108891365 | J7: 0.1552308426
A8: 0.0699999999 | B8: 0.1351035243 | C8: -0.01826395492 | D8: 0.1798132107 | E8: 0.3202912448 | F8: 0.1468750139 | G8: 0.1810389447 | H8: 0.003865811134 | I8: 0.1082562354 | J8: 0.07812349427
A9: 0.08000000093 | B9: 0.1579254377 | C9: 0.01673681324 | D9: 0.2582428589 | E9: 0.1459102498 | F9: 0.1400904306 | G9: 0.2757991138 | H9: 0.05692167134 | I9: 0.1054328188 | J9: 0.0008660435847
A10: 0.0900000027 | B10: 0.1920198355 | C10: 0.05171153682 | D10: 0.3364999701 | E10: -0.02859894504 | F10: 0.1329692918 | G10: 0.3710071263 | H10: 0.1100228422 | I10: 0.1027046462 | J10: -0.07631646832
A11: 0.1000000046 | B11: 0.232478965 | C11: 0.08668632074 | D11: 0.414757217 | E11: -0.2031081662 | F11: 0.1258482629 | G11: 0.4662150193 | H11: 0.1631238669 | I11: 0.09997639702 | J11: -0.1534989179
A12: 0.110000003 | B12: 0.2765230386 | C12: 0.1216611698 | D12: 0.4930144794 | E12: -0.3776173335 | F12: 0.1187271426 | G12: 0.5614226447 | H12: 0.2162250561 | I12: 0.09724821782 | J12: -0.2306813769
A13: 0.1200000071 | B13: 0.3226874802 | C13: 0.1566270884 | D13: 0.5711832596 | E13: -0.5518880659 | F13: 0.1116032049 | G13: 0.656652395 | H13: 0.2693966429 | I13: 0.09454295593 | J13: -0.3081174809
A14: 0.1300000062 | B14: 0.3701797964 | C14: 0.1916107725 | D14: 0.6495290998 | E14: -0.7266359162 | F14: 0.1044850578 | G14: 0.7518382192 | H14: 0.3224271592 | I14: 0.09179191353 | J14: -0.3850463058
A15: 0.06224653973 | B15: 0.1291387121 | C15: -0.04535523573 | D15: 0.1193089612 | E15: 0.4557242248 | F15: 0.1527327206 | G15: 0.1067723979 | H15: -0.03735119989 | I15: 0.1102762931 | J15: 0.1378918197 | K15: MVP
A16: 0.08197188697 | B16: 0.163945372 | C16: 0.02363369248 | D16: 0.273674274 | E16: 0.1114988397 | F16: 0.1386861401 | G16: 0.2945729292 | H16: 0.06739261225 | I16: 0.1048947537 | J16: -0.0143532735 | K16: MVE
